bitfinex/quotes_ETHUSD_20230831
["timestamp","ask_amount","ask_price","bid_price","bid_amount"]
[1693523893162,2.6041,1649.5,1649.4,21.19868512]
[1693523895091,2.6041,1649.5,1649.4,14.06658721]
[1693523895272,2.6041,1649.5,1649.4,12.0219433]
[1693523899488,2.6041,1649.5,1649.4,7.4748433]
[1693523900695,2.6041,1649.5,1649.4,8.52886645]
[1693523905495,2.6041,1649.5,1649.4,13.07596645]
[1693523906309,2.6041,1649.5,1649.4,13.71146434]
[1693523906603,2.6041,1649.5,1649.4,16.02032156]
[1693523915721,2.6041,1649.5,1649.4,16.97351367]
[1693523915920,2.6041,1649.5,1649.4,16.02032156]
[1693523916518,2.6041,1649.5,1649.4,16.97351367]
[1693523916896,2.6041,1649.5,1649.4,11.47322156]
[1693523917217,4.7324,1649.5,1649.4,9.16436434]
[1693523927053,2.4,1649.6,1649.4,18.25856434]
[1693523927252,2.4,1649.6,1649.5,3.2218822]
[1693523927456,2.4,1649.6,1649.5,15.7232855]
[1693523927618,2.4,1649.6,1649.5,20.2701155]
[1693523927817,2.4,1649.6,1649.5,22.39244626]
[1693523928358,2.4,1649.6,1649.5,26.34563837]
[1693523928957,2.4,1649.6,1649.5,25.70877932]
[1693523929456,2.4,1649.6,1649.5,28.70877932]
[1693523929844,2.35,1649.6,1649.5,28.70877932]
[1693523930555,2.35,1649.6,1649.5,29.34514842]
[1693523932949,2.35,1649.6,1649.5,28.39195631]
[1693523940463,2.35,1649.6,1649.5,28.87297787]
[1693523950579,2.35,1649.6,1649.5,27.34197787]
[1693523952058,2.35,1649.6,1649.5,28.87297787]
[1693523957260,2.35,1649.6,1649.5,29.82616998]
[1693523966551,2.35,1649.6,1649.5,29.18980088]
[1693523972435,2.35,1649.6,1649.5,30.4607237]
[1693523986563,2.35,1649.6,1649.5,29.50753159]
[1693523987511,2.35,1649.6,1649.5,30.46211498]
[1693523987702,2.35,1649.6,1649.5,29.50753159]
[1693524006944,2.2722,1649.7,1649.5,29.50753159]
[1693524007145,2.2722,1649.7,1649.6,7.93672684]
[1693524007304,2.2722,1649.7,1649.6,12.48327684]
[1693524014159,2.2722,1649.7,1649.6,17.02982684]
[1693524021262,2.2722,1649.7,1649.6,19.9077707]
[1693524023065,2.2722,1649.7,1649.6,17.02982684]
[1693524028876,6.81848,1649.7,1649.6,1.05402315]
[1693524029178,6.81848,1649.7,1649.4,1.59156059]
[1693524029479,6.81848,1649.7,1649.4,1.6905713]
[1693524029645,2.3139,1649.6,1649.4,1.6905713]
[1693524029839,3.454562,1649.6,1649.4,1.6905713]
[1693524030087,5.906862,1649.6,1649.4,1.6905713]
[1693524030264,15.000222,1649.6,1649.4,1.0539711]
[1693524030485,17.42766,1649.6,1649.3,0.6366002]
[1693524030668,17.42766,1649.6,1649.3,3.5643435]
[1693524030981,17.42766,1649.6,1649.4,1.0540738]
[1693524031183,17.42766,1649.6,1649.3,2.9277433]
[1693524031364,12.88098,1649.6,1649.3,2.9277433]
[1693524032283,2.1873,1649.5,1649.3,2.9277433]
[1693524033880,6.73416,1649.5,1649.2,1.13425152]
[1693524034084,8.464284,1649.5,1649.2,3.42539462]
[1693524034284,2.2732,1649.4,1649.2,0.49765132]
[1693524034584,6.82042,1649.4,1649.1,3.0]
[1693524034785,9.31322,1649.4,1649.1,5.9277433]
[1693524034965,4.766,1649.4,1649.1,5.9277433]
[1693524035151,4.766,1649.4,1649.1,10.4756633]
[1693524035351,2.2732,1649.3,1649.1,10.4756633]
[1693524035552,6.82063,1649.3,1649.1,3.0]
[1693524035773,12.754128,1649.3,1649.0,0.6366002]
[1693524035973,12.754128,1649.3,1648.8,38.32096291]
[1693524036191,12.754128,1649.3,1648.9,1.05428119]
[1693524036598,17.301558,1649.3,1648.9,1.05428119]
[1693524036893,12.754128,1649.3,1648.9,1.05428119]
[1693524037095,1.2754128,1649.2,1648.9,1.05428119]
[1693524037278,9.09586,1649.1,1648.9,1.05428119]
[1693524037467,9.10443,1649.1,1648.7,1.59156059]
[1693524037666,9.10443,1649.1,1648.7,13.12258422]
[1693524037884,9.10443,1649.1,1648.8,1.05432033]
[1693524038063,9.10443,1649.1,1648.8,1.69092053]
[1693524038464,11.532678,1649.1,1648.8,1.69092053]
[1693524041270,11.532678,1649.1,1648.8,6.23968053]
[1693524041471,13.932678,1649.1,1648.9,1.05432033]
[1693524048089,13.30007844,1649.1,1648.9,1.05432033]
[1693524050778,13.30007844,1649.1,1648.9,1.69092053]
[1693524050979,13.30007844,1649.1,1648.8,6.14032059]
[1693524051179,13.30007844,1649.1,1648.9,1.05433641]
[1693524051482,13.30007844,1649.1,1648.9,1.69093661]
[1693524057720,17.84800844,1649.1,1648.9,1.69093661]
[1693524059322,17.84800844,1649.1,1649.0,1.05433641]
[1693524059520,13.30007844,1649.1,1649.0,1.05433641]
[1693524059720,13.30007844,1649.1,1648.9,1.69093661]
[1693524059928,13.30007844,1649.1,1649.0,1.05433641]
[1693524060703,13.30007844,1649.1,1648.9,1.69093661]
[1693524063135,20.08757628,1649.1,1648.9,1.69093661]
[1693524063303,24.63550628,1649.1,1648.8,0.6366002]
[1693524063511,24.63550628,1649.1,1648.8,1.05444542]
[1693524063706,24.63550628,1649.1,1648.6,1.59156059]
[1693524063908,2.46355063,1649.0,1648.7,1.05452328]
[1693524064231,9.09696,1648.9,1648.7,1.69112348]
[1693524064610,11.74756,1648.9,1648.7,1.69112348]
[1693524064837,14.01826,1648.9,1648.7,1.69112348]
[1693524066500,9.46978,1648.9,1648.7,1.69112348]
[1693524066825,4.9213,1648.9,1648.8,1.05452328]
[1693524067027,4.9213,1648.9,1648.7,1.69112348]
[1693524067225,3.7965201,1648.9,1648.7,2.64608387]
[1693524067427,3.7965201,1648.9,1648.8,1.05452328]
[1693524068336,8.3450201,1648.9,1648.8,1.05452328]
[1693524069333,8.3450201,1648.9,1648.8,1.69112348]
[1693524069831,8.3450201,1648.9,1648.8,1.05452328]
[1693524070033,8.3450201,1648.9,1648.8,1.69112348]
[1693524071505,8.3450201,1648.9,1648.8,0.6366002]
[1693524071707,4.828248,1649.1,1648.8,1.69112348]
[1693524071907,9.376238,1649.1,1648.8,7.58654454]
[1693524072102,9.376238,1649.1,1648.9,1.69112348]
[1693524072314,4.828248,1649.1,1648.9,1.69112348]
[1693524072843,11.655088,1649.1,1648.8,1.98326126]
[1693524073019,11.655088,1649.1,1648.9,1.05444511]
[1693524073219,11.655088,1649.1,1648.9,1.69104531]
[1693524073405,11.655088,1649.1,1649.0,1.05444511]
[1693524073737,11.655088,1649.1,1648.9,0.6366002]
[1693524074889,7.107148,1649.1,1649.0,1.05444511]
[1693524075093,4.828248,1649.1,1648.9,1.64104531]
[1693524075386,4.828248,1649.1,1648.9,2.5960057]
[1693524075592,9.376188,1649.1,1648.9,2.5960057]
[1693524075751,9.376188,1649.1,1649.0,1.05444511]
[1693524077069,9.376188,1649.1,1648.9,0.95496039]
[1693524078792,4.828248,1649.1,1648.9,5.64052469]
[1693524078968,2.4,1649.1,1649.0,7.73907162]
[1693524079175,2.4,1649.1,1649.0,11.33232123]
[1693524082093,2.4,1649.1,1649.0,12.28660523]
[1693524082278,2.4,1649.1,1649.0,14.63249992]
[1693524083194,2.4,1649.1,1649.0,13.3615771]
[1693524083355,2.4,1649.1,1649.0,11.8305771]
[1693524085094,2.4,1649.1,1649.0,12.46676528]
[1693524085298,2.4,1649.1,1649.0,11.51248128]
[1693524087199,2.4,1649.1,1649.0,10.8762931]
[1693524087897,2.4,1649.1,1649.0,11.51248128]
[1693524088063,2.4,1649.1,1649.0,10.8762931]
[1693524090120,2.4,1649.1,1648.8,3.63618818]
[1693524090121,6.94793,1649.1,1648.8,3.63618818]
[1693524090321,16.04379,1649.1,1648.7,0.63618818]
[1693524090482,16.04379,1649.1,1648.7,3.56393148]
[1693524090483,2.2442,1649.0,1648.7,3.56393148]
[1693524090687,4.54848,1648.9,1648.8,1.05441842]
[1693524090921,13.64544,1648.9,1648.6,0.63618818]
[1693524091095,13.64544,1648.9,1648.5,0.63618818]
[1693524091096,1.364544,1648.8,1648.5,0.63618818]
[1693524091416,9.09806,1648.7,1648.5,3.56393148]
[1693524091597,9.09806,1648.7,1648.6,1.0545283]
[1693524091914,4.54903,1648.7,1648.6,1.0545283]
[1693524092113,4.54903,1648.7,1648.5,2.9277433]
[1693524093807,15.045574,1648.8,1648.5,2.9277433]
[1693524093993,10.496644,1648.8,1648.5,7.4773133]
[1693524097737,1.0496644,1648.7,1648.5,7.4773133]
[1693524097886,1.0496644,1648.7,1648.5,2.9277433]
[1693524098303,15.045564,1648.8,1648.5,2.9277433]
[1693524099430,10.496644,1648.8,1648.5,7.4773133]
[1693524101948,10.496644,1648.8,1648.5,2.9277433]
[1693524102861,15.045574,1648.8,1648.5,2.9277433]
[1693524103524,15.045574,1648.8,1648.5,7.4773033]
[1693524103525,10.496644,1648.8,1648.5,7.4773033]
[1693524105281,2.2442,1648.8,1648.5,12.0268933]
[1693524105461,2.2442,1648.8,1648.6,2.9277433]
[1693524105633,2.2442,1648.8,1648.7,4.54903]
[1693524105830,2.2442,1648.8,1648.6,12.0261633]
[1693524106037,2.2442,1648.8,1648.6,7.4769533]
[1693524110467,2.2442,1648.8,1648.6,2.9277433]
[1693524112551,6.79296,1648.8,1648.6,2.9277433]
[1693524124589,12.475868,1648.8,1648.4,6.71690818]
[1693524124792,14.928068,1648.8,1648.5,4.46225059]
[1693524124968,14.928068,1648.8,1648.5,3.4077433]
[1693524128108,10.379308,1648.8,1648.5,3.4077433]
[1693524129321,10.379308,1648.8,1648.6,1.05450851]
[1693524129455,10.379308,1648.8,1648.5,7.9572933]
[1693524129660,9.24516,1648.8,1648.5,7.9572933]
[1693524130308,2.2347,1648.7,1648.6,1.05451067]
[1693524131812,2.4522,1648.8,1648.6,10.06256397]
[1693524132016,2.2347,1648.9,1648.6,13.5573633]
[1693524132217,2.2347,1648.9,1648.6,15.47966245]
[1693524132367,2.2347,1648.9,1648.7,1.05445661]
[1693524132557,2.2347,1648.9,1648.7,5.60335661]
[1693524132780,2.2347,1648.9,1648.7,4.5489]
[1693524136219,2.2347,1648.9,1648.8,1.05445067]
[1693524137420,2.2347,1648.9,1648.8,5.60321067]
[1693524137588,2.3001,1649.0,1648.8,6.68203956]
[1693524137926,2.4,1649.1,1648.9,1.531]
[1693524138227,4.589,1649.1,1648.9,10.62785]
[1693524139072,4.589,1649.1,1648.9,6.07937]
[1693524139423,4.589,1649.1,1648.9,10.62785]
[1693524139828,4.589,1649.1,1648.9,6.07937]
[1693524140181,4.589,1649.1,1648.9,10.62785]
[1693524140380,4.589,1649.1,1648.9,6.07937]
[1693524140777,4.589,1649.1,1648.9,4.54837]
[1693524142658,4.589,1649.1,1648.8,9.64355148]
[1693524142659,9.13697,1649.1,1648.8,2.9277433]
[1693524143507,15.754907,1649.1,1648.7,0.63618818]
[1693524143821,15.754907,1649.1,1648.7,4.69060095]
[1693524144039,15.754907,1649.1,1648.8,1.05441277]
[1693524146456,15.754907,1649.1,1648.7,8.02626279]
[1693524146608,15.754907,1649.1,1648.8,1.05442234]
[1693524146810,1.5754907,1649.0,1648.8,1.05442234]
[1693524147009,15.754907,1649.1,1648.8,1.05442234]
[1693524147243,15.754907,1649.1,1648.7,8.02626279]
[1693524147553,15.754907,1649.1,1648.8,1.05442146]
[1693524148010,15.754907,1649.1,1648.7,8.02626279]
[1693524149530,15.754907,1649.1,1648.8,1.05441856]
[1693524149732,15.754907,1649.1,1648.7,7.54898]
[1693524150070,15.754907,1649.1,1648.7,3.0]
[1693524150273,3.7740907,1649.0,1648.7,3.0]
[1693524150485,8.3224807,1649.0,1648.7,3.0]
[1693524150686,2.1509,1648.9,1648.7,3.0]
[1693524158076,13.64549,1648.9,1648.5,1.59047218]
[1693524158251,3.465149,1648.8,1648.4,0.63618818]
[1693524158439,3.465149,1648.8,1648.2,1.59047218]
[1693524158440,13.64727,1648.7,1648.2,1.59047218]
[1693524158642,15.17827,1648.7,1648.2,1.6908848]
[1693524158866,15.17827,1648.7,1648.1,1.59047218]
[1693524158867,2.1006,1648.6,1648.1,1.59047218]
[1693524159066,13.64916,1648.5,1648.1,4.51821548]
[1693524159268,16.01786,1648.5,1648.2,1.05474677]
[1693524159443,2.1006,1648.4,1648.2,1.05474677]
[1693524159781,4.55014,1648.3,1648.2,1.05474677]
[1693524160595,9.10028,1648.3,1648.2,1.05474677]
[1693524160743,4.55014,1648.3,1648.2,1.05474677]
[1693524160943,4.55014,1648.3,1648.1,1.69093495]
[1693524161252,4.55014,1648.3,1648.0,1.69047218]
[1693524161456,4.55014,1648.3,1648.1,1.05476382]
[1693524162174,6.65069,1648.4,1648.1,5.60545382]
[1693524162362,11.20069,1648.4,1648.0,3.66393148]
[1693524162563,15.75069,1648.4,1648.1,1.05478798]
[1693524162950,15.75069,1648.4,1648.0,3.0277433]
[1693524163546,11.2006,1648.4,1648.0,3.0277433]
[1693524164048,17.562492,1648.4,1648.0,3.0277433]
[1693524164244,13.012492,1648.4,1648.0,3.0277433]
[1693524164496,17.562492,1648.4,1648.0,3.0277433]
[1693524164967,13.012492,1648.4,1648.0,3.0277433]
[1693524165448,13.012492,1648.4,1648.0,0.1]
[1693524165650,5.8515792,1648.3,1647.9,10.68303232]
[1693524165880,6.6506,1648.4,1648.0,3.98263643]
[1693524166083,2.1006,1648.4,1648.0,18.1115333]
[1693524166283,2.1006,1648.4,1648.1,2.58582632]
[1693524166578,2.1006,1648.4,1648.2,4.55041]
[1693524166777,6.91846,1648.5,1648.2,4.55041]
[1693524166958,4.606,1648.5,1648.2,4.55041]
[1693524167555,9.15562,1648.5,1648.2,4.55041]
[1693524168394,4.606,1648.5,1648.2,4.55041]
[1693524169267,4.606,1648.5,1648.2,6.068662]
[1693524170171,4.606,1648.5,1648.2,4.55041]
[1693524173483,4.606,1648.5,1648.2,9.10082]
[1693524175610,7.006,1648.5,1648.2,9.10082]
[1693524176524,11.5556,1648.5,1648.2,4.55041]
[1693524179588,7.006,1648.5,1648.2,4.55041]
[1693524179788,7.006,1648.5,1648.2,9.10082]
[1693524181930,7.006,1648.5,1648.2,10.63182]
[1693524185822,7.006,1648.5,1648.2,16.85951422]
[1693524186221,7.006,1648.5,1648.3,1.05472725]
[1693524186434,7.006,1648.5,1648.4,9.09972]
[1693524187936,7.006,1648.5,1648.4,4.54986]
[1693524189557,2.4,1648.5,1648.4,4.54986]
[1693524191315,2.4,1648.5,1648.4,5.60455832]
[1693524199351,2.4,1648.5,1648.4,1.05469832]
[1693524200027,4.499,1648.5,1648.4,1.05469832]
[1693524202332,4.499,1648.5,1648.4,1.6908865]
[1693524207472,4.499,1648.5,1648.4,1.05469832]
[1693524209301,4.499,1648.5,1648.4,1.05476455]
[1693524212489,4.499,1648.5,1648.4,1.05475413]
[1693524212889,4.499,1648.5,1648.3,4.54991]
[1693524216000,4.449,1648.5,1648.3,4.54991]
[1693524216295,4.449,1648.5,1648.2,5.18645818]
[1693524216594,6.8461,1648.5,1648.3,1.05476317]
[1693524219700,6.8461,1648.5,1648.1,7.035964]
[1693524219701,6.8461,1648.5,1648.1,6.71786818]
[1693524219902,20.49491,1648.5,1648.0,0.63618818]
[1693524220075,20.49491,1648.5,1648.0,1.05492131]
[1693524220076,2.2208,1648.4,1648.0,1.05492131]
[1693524220276,13.65057,1648.3,1648.0,1.05492131]
[1693524220794,16.03307,1648.3,1648.0,1.05492131]
[1693524220997,16.03307,1648.3,1647.9,2.16825949]
[1693524221194,2.1101,1648.2,1648.0,1.05492612]
[1693524221505,11.2112,1648.2,1648.0,1.05492612]
[1693524221889,6.66053,1648.2,1648.0,1.05492612]
[1693524222090,6.66053,1648.2,1647.8,0.63725949]
[1693524222091,11.1612,1648.2,1647.8,0.63725949]
[1693524222292,17.06624,1648.2,1647.8,4.61997702]
[1693524222492,17.06624,1648.2,1647.9,1.05497423]
[1693524222870,15.00614,1648.2,1647.9,1.05497423]
[1693524223304,10.45547,1648.2,1647.9,1.05497423]
[1693524224491,2.156,1648.1,1647.9,1.05497423]
[1693524224776,6.70671,1648.1,1647.8,2.9277433]
[1693524224972,6.70671,1648.1,1647.8,4.7432655]
[1693524224973,4.4767,1648.1,1647.8,4.7432655]
[1693524225172,4.4767,1648.1,1647.9,1.05496053]
[1693524225670,4.4767,1648.1,1647.9,4.55121]
[1693524229263,4.4767,1648.1,1647.8,9.2946455]
[1693524230465,4.4767,1648.1,1647.8,9.2446455]
[1693524231781,6.7767,1648.1,1647.8,9.2446455]
[1693524234234,2.3,1648.1,1648.0,6.08197]
[1693524234471,2.3,1648.1,1648.0,13.5606833]
[1693524234670,2.3,1648.1,1648.0,15.09555536]
[1693524235030,2.3,1648.1,1648.0,10.54458536]
[1693524236374,2.3,1648.1,1648.0,15.09555536]
[1693524236539,2.3,1648.1,1648.0,17.31197422]
[1693524236736,2.3,1648.1,1648.0,12.76100422]
[1693524236944,2.3,1648.1,1648.0,17.31197422]
[1693524237255,2.3,1648.1,1648.0,17.94923371]
[1693524237448,2.3,1648.1,1648.0,13.39826371]
[1693524238049,2.3,1648.1,1648.0,12.76100422]
[1693524244765,2.3,1648.1,1648.0,2.58587206]
[1693524246395,2.3,1648.1,1648.0,7.13684206]
[1693524246928,2.3,1648.1,1648.0,6.08197]
[1693524247273,2.3,1648.1,1648.0,4.55097]
[1693524247770,2.3,1648.1,1648.0,5.60586901]
[1693524248528,2.3,1648.1,1648.0,4.55097]
[1693524248888,2.3,1648.1,1648.0,5.60587161]
[1693524249730,2.3,1648.1,1648.0,1.05490161]
[1693524249888,2.3,1648.1,1647.9,11.10781063]
[1693524250087,2.3,1648.1,1647.9,14.03555393]
[1693524250288,2.3,1648.1,1647.9,9.48446393]
[1693524250487,2.74978,1648.1,1647.8,0.63725949]
[1693524250730,2.74978,1648.1,1647.8,12.17144886]
[1693524250731,5.19738,1648.1,1647.8,12.17144886]
[1693524250934,2.0864,1648.0,1647.7,6.12414873]
[1693524251236,2.0864,1648.0,1647.8,1.05497582]
[1693524251396,2.0864,1648.0,1647.8,5.60644582]
[1693524251595,2.0864,1648.0,1647.8,4.55147]
[1693524253011,2.0864,1648.0,1647.9,1.05497809]
[1693524253210,2.0864,1648.0,1647.7,13.60352203]
[1693524253411,2.0864,1648.0,1647.8,1.05497825]
[1693524253605,2.0864,1648.0,1647.8,1.69223774]
[1693524254642,2.0864,1648.0,1647.8,6.24373774]
[1693524254940,2.0864,1648.0,1647.9,1.05497825]
[1693524258153,2.0864,1648.0,1647.8,1.69223774]
[1693524258469,2.0864,1648.0,1647.8,6.24362774]
[1693524258775,2.0864,1648.0,1647.9,1.05497825]
[1693524259225,2.0864,1648.0,1647.8,6.24374774]
[1693524259422,2.0864,1648.0,1647.9,1.05497825]
[1693524259621,2.0864,1648.0,1647.8,1.69223774]
[1693524262567,2.0864,1648.0,1647.8,6.24371774]
[1693524262767,2.0864,1648.0,1647.9,1.05497825]
[1693524263139,2.0864,1648.0,1647.7,12.64763279]
[1693524263338,2.0864,1648.0,1647.8,1.05503407]
[1693524265129,6.63738,1648.0,1647.8,1.05503407]
[1693524267880,8.230948,1648.0,1647.7,4.4587433]
[1693524268084,6.63738,1648.0,1647.7,2.9277433]
[1693524269788,2.203,1647.9,1647.7,2.9277433]
[1693524274320,6.7543,1647.9,1647.7,2.9277433]
[1693524274546,2.203,1647.9,1647.7,2.9277433]
[1693524275423,2.203,1647.9,1647.6,0.1]
[1693524275622,13.7938,1647.9,1647.6,3.1]
[1693524275826,15.628278,1647.9,1647.6,0.1]
[1693524275986,2.1661,1647.8,1647.6,0.1]
[1693524276186,6.71778,1647.8,1647.6,0.1]
[1693524277136,2.1661,1647.8,1647.6,0.1]
[1693524285770,2.1661,1647.8,1647.6,1.631]
[1693524285971,2.3,1648.1,1647.7,4.4587433]
[1693524286268,2.3,1648.1,1647.8,6.52833433]
[1693524286269,4.6248,1648.1,1647.8,6.52833433]
[1693524286469,4.6248,1648.1,1647.8,9.45607763]
[1693524286671,11.4638,1648.1,1647.8,9.45607763]
[1693524288040,11.4638,1648.1,1647.8,4.90461763]
[1693524292244,11.4638,1648.1,1647.8,3.37361763]
[1693524295263,11.4638,1648.1,1647.8,2.9277433]
[1693524297491,16.0145,1648.1,1647.8,2.9277433]
[1693524297884,2.1043,1648.0,1647.8,2.9277433]
[1693524298085,6.6553,1648.0,1647.8,2.9277433]
[1693524303105,6.6553,1648.0,1647.7,2.011]
[1693524303404,2.1361,1647.9,1647.7,3.4077433]
[1693524303606,6.68744,1647.9,1647.7,3.4077433]
[1693524304505,6.68744,1647.9,1647.6,2.1131971]
[1693524304715,2.1361,1647.9,1647.6,5.1131971]
[1693524304868,9.03916,1647.9,1647.6,9.6652371]
[1693524305068,4.4879,1647.9,1647.6,9.6652371]
[1693524305518,4.4879,1647.9,1647.6,9.18304]
[1693524305678,4.4879,1647.9,1647.6,7.65204]
[1693524306008,2.1361,1647.8,1647.6,3.1]
[1693524307021,5.455446,1647.8,1647.6,0.1]
[1693524307200,12.198566,1647.8,1647.6,0.1]
[1693524307367,7.647036,1647.8,1647.6,0.1]
[1693524308211,16.750076,1647.8,1647.6,0.1]
[1693524308370,1.6750076,1647.7,1647.6,0.1]
[1693524308707,15.3303776,1647.7,1647.6,0.1]
[1693524309303,17.5986376,1647.7,1647.6,0.1]
[1693524311505,17.4986376,1647.7,1647.6,0.1]
[1693524313009,15.9676376,1647.7,1647.6,0.1]
[1693524322886,5.28905,1647.7,1647.6,0.1]
[1693524323123,9.84084,1647.7,1647.6,0.1]
[1693524326588,14.39263,1647.7,1647.6,0.1]
[1693524327628,9.84084,1647.7,1647.6,0.1]
[1693524328002,14.39263,1647.7,1647.6,0.1]
[1693524329832,9.84084,1647.7,1647.6,0.1]
[1693524330134,0.73726,1647.7,1647.6,0.1]
[1693524331123,0.73726,1647.7,1647.6,0.71832]
[1693524332636,0.73726,1647.7,1647.6,0.1]
[1693524349574,14.39263,1647.7,1647.6,0.1]
[1693524350274,16.50043,1647.7,1647.6,0.1]
[1693524353879,7.39685,1647.7,1647.6,0.1]
[1693524359042,11.94864,1647.7,1647.6,0.1]
[1693524359333,13.598675,1647.7,1647.6,0.1]
[1693524360195,13.548675,1647.7,1647.6,0.1]
[1693524360569,21.50541128,1647.7,1647.6,0.1]
[1693524360770,27.62353582,1647.7,1647.6,0.1]
[1693524364333,26.03641128,1647.7,1647.6,0.1]
[1693524364488,27.62353582,1647.7,1647.6,0.1]
[1693524365222,26.03641128,1647.7,1647.6,0.1]
[1693524366141,26.03641128,1647.7,1647.3,0.1]
[1693524366142,18.2094,1647.5,1647.3,0.1]
[1693524366300,1.82094,1647.4,1647.3,0.1]
[1693524366487,18.4788,1647.4,1647.3,0.1]
[1693524369387,21.4065433,1647.4,1647.3,0.1]
[1693524371831,22.9375433,1647.4,1647.3,0.1]
[1693524372134,23.43186109,1647.4,1647.3,0.1]
[1693524379935,23.43186109,1647.4,1647.2,0.1]
[1693524380134,2.34318611,1647.3,1647.2,0.1]
[1693524380387,16.00188611,1647.3,1647.2,0.1]
[1693524381879,29.48252941,1647.3,1647.1,0.1]
[1693524382081,29.48252941,1647.3,1647.0,0.1]
[1693524382082,1.531,1647.2,1647.0,0.1]
[1693524382392,19.7448,1647.1,1647.0,0.1]
[1693524382748,22.7448,1647.1,1647.0,0.1]
[1693524384854,9.1069,1647.1,1647.0,0.1]
[1693524385260,13.66035,1647.1,1647.0,0.1]
[1693524385510,15.54917029,1647.1,1647.0,0.1]
[1693524386191,15.79232129,1647.1,1647.0,0.1]
[1693524402442,13.903501,1647.1,1647.0,0.1]
[1693524412138,9.350051,1647.1,1647.0,0.1]
[1693524412493,13.903501,1647.1,1647.0,0.1]
[1693524413800,0.243151,1647.1,1647.0,0.1]
[1693524413951,4.796601,1647.1,1647.0,0.1]
[1693524415606,9.350051,1647.1,1647.0,0.1]
[1693524417410,11.650051,1647.1,1647.0,0.1]
[1693524432256,16.203501,1647.1,1647.0,0.1]
[1693524432753,18.419901,1647.1,1647.0,0.1]
[1693524435662,20.7172281,1647.1,1647.0,0.1]
[1693524443270,16.1637781,1647.1,1647.0,0.1]
[1693524443575,2.543151,1647.1,1647.0,0.1]
[1693524448453,7.096601,1647.1,1647.0,0.1]
[1693524457554,2.543151,1647.1,1647.0,0.1]
[1693524458007,7.096601,1647.1,1647.0,0.1]
[1693524466411,9.292401,1647.1,1647.0,0.1]
[1693524472040,11.1323121,1647.1,1647.0,0.1]
[1693524472347,20.2392121,1647.1,1647.0,0.1]
[1693524472825,21.82948887,1647.1,1647.0,0.1]
[1693524474684,20.2392121,1647.1,1647.0,0.1]
[1693524483768,11.1323121,1647.1,1647.0,0.1]
[1693524483983,9.292401,1647.1,1647.0,0.1]
[1693524484343,13.845851,1647.1,1647.0,0.1]
[1693524485790,2.543151,1647.1,1647.0,0.1]
[1693524487296,7.096601,1647.1,1647.0,0.1]
[1693524489293,11.650051,1647.1,1647.0,0.1]
[1693524489494,13.4847471,1647.1,1647.0,0.1]
[1693524493502,11.650051,1647.1,1647.0,0.1]
[1693524497099,7.096601,1647.1,1647.0,0.1]
[1693524497974,2.543151,1647.1,1647.0,0.1]
[1693524509694,7.096601,1647.1,1647.0,0.1]
[1693524516446,11.650051,1647.1,1647.0,0.1]
[1693524517635,13.874551,1647.1,1647.0,0.1]
[1693524524540,18.428001,1647.1,1647.0,0.1]
[1693524551382,20.7261261,1647.1,1647.0,0.1]
[1693524563003,23.84763041,1647.1,1647.0,0.1]
[1693524563294,29.84763041,1647.1,1646.9,0.1]
[1693524563495,15.25271368,1647.0,1646.9,0.1]
[1693524563721,18.25271368,1647.0,1646.9,0.1]
[1693524563894,25.30627946,1647.0,1646.9,0.1]
[1693524565352,25.30576559,1647.0,1646.9,0.1]
[1693524569217,23.71475578,1647.0,1646.9,0.1]
[1693524572128,23.71475578,1647.0,1646.8,0.1]
[1693524573417,1.531,1646.9,1646.8,0.1]
[1693524573644,17.71760558,1646.9,1646.8,0.1]
[1693524573843,27.50391539,1646.9,1646.7,0.105026]
[1693524574042,27.50391539,1646.9,1646.6,0.1]
[1693524574043,6.12200981,1646.8,1646.6,0.1]
[1693524574259,25.7728,1646.7,1646.5,0.1]
[1693524574443,4.531,1646.5,1646.3,0.1]
[1693524574645,27.30795,1646.4,1646.3,0.1]
[1693524574843,13.66617,1646.4,1646.3,0.1]
[1693524575421,15.19717,1646.4,1646.3,0.1]
[1693524575914,19.75256,1646.4,1646.3,0.1]
[1693524576120,25.483347,1646.4,1646.3,0.1]
[1693524576447,3.0,1646.3,1646.1,0.1]
[1693524576637,13.66782,1646.2,1646.1,0.1]
[1693524577717,13.911093,1646.2,1646.1,0.1]
[1693524598924,2.3,1646.3,1646.2,0.39047739]
[1693524600822,2.3,1646.3,1646.2,4.27848643]
[1693524601024,1.17350203,1646.3,1646.2,21.65115242]
[1693524601325,1.17350203,1646.3,1646.2,21.97000602]
[1693524601510,5.72917203,1646.3,1646.2,6.44950163]
[1693524601820,1.17350203,1646.3,1646.2,6.44950163]
[1693524602388,1.17350203,1646.3,1646.2,5.81462523]
[1693524602602,5.72917203,1646.3,1646.2,5.81462523]
[1693524603297,5.72917203,1646.3,1646.2,6.44950163]
[1693524603498,1.17350203,1646.3,1646.2,6.44950163]
[1693524605184,9.11103,1646.4,1646.2,6.44950163]
[1693524605436,9.11103,1646.4,1646.3,1.0561388]
[1693524606328,13.66657,1646.4,1646.3,1.05613823]
[1693524606524,13.66657,1646.4,1646.2,0.39047739]
[1693524606743,15.033227,1646.4,1646.2,0.39047739]
[1693524607500,6.68605,1646.5,1646.2,0.39047739]
[1693524607740,4.5554,1646.4,1646.2,0.39047739]
[1693524608044,9.1108,1646.4,1646.2,0.39047739]
[1693524608716,6.68605,1646.5,1646.2,0.39047739]
[1693524608900,4.55555,1646.4,1646.2,0.39047739]
[1693524609237,4.55555,1646.4,1646.3,1.05613621]
[1693524609439,4.55555,1646.4,1646.2,2.08149]
[1693524609643,4.55555,1646.4,1646.2,0.39047739]
[1693524610744,4.55555,1646.4,1646.2,2.08148319]
[1693524610942,4.55555,1646.4,1646.3,1.0561294]
[1693524611843,4.55555,1646.4,1646.2,0.39047739]